{"text_format":"1","workbook":"xlsx","n_sheets":2,"sheets":["Cover","Benchmarking"],"not_rendered":{"charts":3,"images":0,"macros":0,"external_links":1,"defined_names":12,"comments":0,"pivot_tables":0},"unopened":[],"bounds":{"document_bytes":16777216,"sheet_cells":100000,"rows_first":2000,"rows_last":500,"rows_between":2000,"halvings":0,"cell_chars":16384,"cell_head_chars":4096},"cells_cut":0,"cells_raw":0,"read":"whole","date_system":"1900"}

{"sheet":"Cover","index":0,"n_rows":23,"n_cols":3,"rows_kept":23,"cut":false,"hidden":false,"merged":[]}
[]
[]
[null,"Excel + VBA "]
[null,"für Controller"]
[]
[]
[null,"Kapitel",7]
[null,"Thema","Strategisches Prozess-Controlling"]
[]
[null,"Inhalt","Benchmarking"]
[]
[null,null," "]
[]
[]
[]
[]
[]
[null,"Version","2.0"]
[null,"Autor","Harald Nahrstedt"]
[null,"Datum","2023-08-03"]
[]
[]
[null,"Springer Verlag"]

{"sheet":"Benchmarking","index":1,"n_rows":11,"n_cols":12,"rows_kept":11,"cut":false,"hidden":false,"merged":[[1,1,1,2],[1,9,1,10],[10,1,10,2],[13,2,13,3]]}
[null,null,"Firmenname","Firma A                 ","Firma B","Firma C","Firma D","Firma E","Firma F","ungewicht.","gewichtet"]
["Prozessname","Gewichtung:",null,3,2,1,2,3,2,"Punkte",null,"Rang"]
["Regionalität",null,5,4,3,2,null,null,null,{"$f":"SUM(D3:I3)","v":9},{"$f":"C3*(D3*D$2+E3*E$2+F3*F$2+G3*G$2+H3*H$2+I3*I$2)","v":100},{"$f":"RANK(K3,Wichte)","v":6}]
["Ähnliche Produkte",null,3,null,4,6,null,7,null,{"$f":"SUM(D4:I4)","v":17},{"$f":"C4*(D4*D$2+E4*E$2+F4*F$2+G4*G$2+H4*H$2+I4*I$2)","v":105},5]
["Reaktionszeiten",null,6,4,null,6,8,null,null,18,204,3]
["Flexibilität",null,3,null,9,4,5,null,null,18,96,7]
["Eskalationsmanagement",null,3,4,null,8,null,8,7,27,174,4]
["Fehlerhandling",null,4,null,4,6,9,8,null,27,224,2]
["Unternehmenskultur",null,5,3,5,null,7,null,6,21,225,1]
["Personalflukturation",null,2,null,8,null,3,2,null,13,56,8]
[null,"Punkte:",null,{"$f":"SUM(D3:D10)*D2","v":45},66,32,64,75,26]